{"text_format":"2","workbook":"xlsx","n_sheets":1,"sheets":["Diesel Bus - Route Details"],"not_rendered":{"charts":0,"images":0,"macros":0,"external_links":0,"defined_names":0,"comments":0,"pivot_tables":0},"unopened":[],"bounds":{"document_bytes":16777216,"sheet_cells":100000,"run_cost":"one","rows_first":2000,"rows_last":500,"rows_between":2000,"halvings":0,"cell_chars":16384,"cell_head_chars":4096},"cells_cut":0,"cells_raw":0,"read":"whole","date_system":"1900"}

{"sheet":"Diesel Bus - Route Details","index":0,"n_rows":70,"n_cols":8,"rows_kept":70,"cut":false,"hidden":false,"merged":[[2,1,2,7]]}
[]
[]
[null,"TMT Bus Coverage Area - Diesel Buses"]
[]
[null,"Sr. No","Depots","Route type","Route No","Starting Point","Destination","Route Description"]
[null,1,"Waghle Depot","Ordinary",6,"Wagle Depot","Vrindavan Society","via Indira Nagar, Kamgar Hospital, Nitin Co, Hariniwas, Thane Railway Station (W), Jambhli Naka, Castle Mill"]
[null,{"$f":"B6+1","v":2},"Anand Nagar","Ordinary",8,"Thane Railway Station (W)","Shastri Nagar","via Kopri Bridge, Teen Hath Naka, Nitin Co, Cadbury Jn, Vartak Nagar"]
[null,{"$f":"B7+1","v":3},"Anand Nagar","Ordinary",9,"Thane Railway Station (W)","Shivai Nagar","via Jambhli Naka, Ambedkar Road, Khopat, Cadbury Jn, Vartak Nagar"]
[null,4,"Anand Nagar","Ordinary",10,"Thane Railway Station (W)","Gawand Baug (Upavan)","via Hariniwas, Makhmali Talao, ST Workshop, Khopat, Cadbury Jn, Vartak Nagar, Shivai Nagar, Upavan Lake"]
[null,5,"Anand Nagar","Ordinary",11,"Thane Railway Station (W)","Kokanipada (Pokharan Road No.2)","via Hariniwas, Makhmali Talao, ST Workshop, Khopat, Pratap Cinema, Naralipada, Oswal Park, Gandhi Nagar, Neelkanth Terminal"]
[null,6,"Anand Nagar","Ordinary",12,"Thane Railway Station (W)","Pawar Nagar","via Jambhli Naka, Castle Mill, Oswal Park, Gandhi Nagar, Vasant Vihar"]
[null,7,"Anand Nagar","Limited","LTD","Thane Railway Station (W)","Pawar Nagar","via Teen Hath Naka, Nitin Co, Cadbury Jn, Oswal Park, Vasant Vihar"]
[null,8,"Anand Nagar","Ordinary",13,"Thane Railway Station (W)","Kalwa Depot","via Jambhli Naka, RTO, Kalwa Bridge"]
[null,9,"Anand Nagar","Ordinary",14,"Thane Railway Station (E)","Bheem Nagar","via Kopri Bridge, Teen Hath Naka, Nitin Co, Cadbury Jn, Vartak Nagar"]
[null,10,"Anand Nagar","Ordinary",15,"Thane Railway Station (W)","Ganpati Pada","via Jambhli Naka, RTO, Kalwa Bridge, Kalwa Depot, Vitawa"]
[null,11,"Anand Nagar","Ordinary",16,"Thane Railway Station (W)","Patonapada (Yeoor)","via Jambhli Naka, Ambedkar Road, Khopat, Cadbury Jn, Vartak Nagar, Shivai Nagar, Yeoor Village"]
[null,12,"Anand Nagar","Ordinary",17,"Thane Railway Station (W)","Laxmi Nagar (Chirag Nagar)","via Jambhli Naka, Ambedkar Road, Khopat, Cadbury Jn"]
[null,13,"Anand Nagar","Ordinary",20,"Thane Railway Station (W)","Kajuwadi","via Hariniwas, Gurukul Society, Nitin Co, Louiswadi"]
[null,14,"Anand Nagar","Ordinary",23,"Lokmanya Nagar","Vrindavan Society","via Yashodhan Nagar, Kamgar Hospital, Passport Office, LBS Check Naka, Teen Hath Naka, Hariniwas, Thane Railway Station (W), Jambhli Naka, Castle Mill"]
[null,15,"Anand Nagar","Ordinary",26,"Thane Railway Station (W)","Majiwada","via Jambhli Naka, Castle Mill, Majiwada Naka"]
[null,16,"Anand Nagar","Ordinary",27,"Lokmanya Nagar","Majiwada","via Yashodhan Nagar, Kamgar Hospital, Passport Office, LBS Check Naka, Teen Hath Naka, Hariniwas, Thane Railway Station (W), Jambhli Naka, Castle Mill, Majiwada Naka"]
[null,17,"Anand Nagar","Ordinary",30,"Anand Nagar","Daulat Nagar","via Mukand Co, Vitawa, Kalwa Depot, Kalwa Bridge, RTO, Jambhli Naka, Thane Railway Station (W), Kopri Bridge, Bara Bunglow, Prem Nagar"]
[null,18,"Anand Nagar","Ordinary",31,"Vrindavan Society","Bim's Paradise","via Castle Mill, Jambhli Naka, Thane Railway Station (W), Kopri Bridge, Bara Bunglow, Prem Nagar"]
[null,19,"Anand Nagar","Ordinary",35,"Kharegaon","Lokmanya Nagar","via Kharegaon Naka, Kalwa Bridge, RTO, Jambhli Naka, Thane Railway Station (W), Hariniwas, Almeida Rd, Nitin Co, Cadbury Jn, Vartak Nagar, Kores Co, Yashodhan Nagar"]
[null,20,"Anand Nagar","Ordinary",36,"Kharegaon","Lokmanya Nagar","via Kharegaon Naka, Kalwa Bridge, RTO, Jambhli Naka, Thane Railway Station (W), Hariniwas, Almeida Rd, Nitin Co, Kamgar Hospital, Indira Nagar"]
[null,21,"Anand Nagar","Ordinary",38,"Thane Railway Station (W)","Sahyadri Society","via Gadkari Rangayatan, Jambhli Naka, RTO, Kalwa Bridge"]
[null,22,"Anand Nagar","Ordinary",39,"Thane Railway Station (W)","Parsik Nagar","via Jambhli Naka, RTO, Kalwa Bridge, Kharegaon Naka"]
[null,23,"Waghle Depot","Ordinary",40,"Thane Railway Station (W)","Kharegaon","via Jambhli Naka, RTO, Kalwa Bridge, Kharegaon Naka"]
[null,24,"Anand Nagar","Ordinary",41,"Parsik Nagar","Shree Nagar","via Kharegaon Naka, Kalwa Bridge, RTO, Jambhli Naka, Thane Railway Station (W), Malhar Cinema, Teen Hath Naka, LBS Check Naka, Passport Office, Wagle Circle"]
[null,25,"Anand Nagar","Ordinary",43,"Kharegaon","Kisan Nagar","via Kharegaon Naka, Kalwa Bridge, RTO, Jambhli Naka, Thane Railway Station (W), Malhar Cinema, Teen Hath Naka, LBS Check Naka, Passport Office"]
[null,26,"Anand Nagar","Ordinary",46,"Thane Railway Station (W)","Panchaganga","via Jambhli Naka, RTO, Kalwa Bridge, Rabodi"]
[null,27,"Anand Nagar","Ordinary",47,"Thane Railway Station (W)","Shruti Park / Dhokali","via Jambli Naka, Civil Hospital, Castle Mill, Majiwada Naka, Kapurbawdi, Highland, Shruti Park, Dhokali"]
[null,28,"Anand Nagar","Ordinary",50,"Thane Railway Station (W)","Gaimukh","via Jambhli Naka, Castle Mill, Majiwada Naka, Kapurbawdi, Manpada, Patlipada, Waghbil Naka , Kasarvadavli, Owala"]
[null,29,"Anand Nagar","Ordinary",51,"Thane Railway Station (W)","Waghbil","via Jambhli Naka, Castle Mill, Majiwada Naka, Kapurbawdi, Manpada, Patlipada, Waghbil Naka"]
[null,30,"Anand Nagar","Ordinary",52,"Thane Railway Station (W)","Patlipada (Hiranandani Estate)","via Jambhli Naka, Castle Mill, Majiwada Naka, Kapurbawdi, Manpada, Patlipada"]
[null,31,"Wagle Depot","Ordinary",53,"Wagle Depot","Owala","via Indira Nagar, Kamgar Hospital, Nitin Co, Hariniwas, Thane Railway Station (W), Jambhli Naka, Castle Mill, Vrindavan Society, Rutu Park, Majiwada Naka, Kapurbawdi, Manpada, Patlipada, Waghbil Naka, Kasarvadavli"]
[null,32,"Anand Nagar","Ordinary",54,"Thane Railway Station (W)","Kasarvadavli","via Jambhli Naka, Castle Mill, Majiwada Naka, Kapurbawdi, Manpada, Patlipada, Waghbil Naka"]
[null,33,"Anand Nagar","Ordinary",55,"Thane Railway Station (W)","Azad Nagar","via Jambhli Naka, Castle Mill, Majiwada Naka, Kapurbawdi, Manpada"]
[null,34,"Anand Nagar","Ordinary",56,"Thane Railway Station (W)","Kokanipada Chitalsar (Tikuji-ni-wadi)","via Hariniwas, Makhmali Talao, ST Workshop, Castle Mill, Majiwada Naka, Kapurbawdi, Manpada, Khevra Circle"]
[null,35,"Anand Nagar","Ordinary",57,"Thane Railway Station (E)","Mira Road Railway Station","via Kopri Bridge, Teen Hath Naka, Nitin Co, Cadbury Jn, Majiwada Naka, Kapurbawdi, Manpada, Patlipada, Waghbil Naka, Kasarvadavli, Owala, Gaimukh, Kajupada, Fountain Hotel, Kashimira, Silver Park"]
[null,36,"Anand Nagar","Ordinary",58,"Lokmanya Tilak Nagar","Mira Road Railway Station","via Yashodhan Nagar, Kamgar Hospital, Passport Office, LBS Check Naka, Teen Hath Naka, Hariniwas, Thane Railway Station (W), Jambhli Naka, Castle Mill, Majiwada Naka, Kapurbawdi, Manpada, Patlipada, Waghbil Naka, Kasarvadavli, Owala, Gaimukh, Kajupada, Fountain Hotel, Kashimira, Silver Park"]
[null,37,"Anand Nagar","Ordinary",59,"Thane Railway Station (W)","Tulshidham","via Jambhli Naka, Castle Mill, Oswal Park, Gandhi Nagar, Vasant Vihar"]
[null,38,"Anand Nagar","Ordinary",60,"Wagle Depot","Mira Road Railway Station","via Indira Nagar, Kamgar Hospital, Nitin Co, Hariniwas, Thane Railway Station (W), Jambhli Naka, Castle Mill, Majiwada Naka, Kapurbawdi, Manpada, Patlipada, Waghbil Naka, Kasarvadavli, Owala, Gaimukh, Kajupada, Fountain Hotel, Kashimira, Silver Park"]
[null,39,"Anand Nagar","Ordinary",62,"Thane Railway Station (W)","Dharmachapada (Brahmand Society)","via Jambhli Naka, Castle Mill, Majiwada Naka, Kapurbawdi, Manpada, Azad Nagar"]
[null,40,"Anand Nagar","Limited","LTD","Thane Railway Station (W)","Dharmachapada (Brahmand Society)","via Teen Hath Naka, Nitin Co, Cadbury Jn, Kapurbawdi, Manpada, Azad Nagar"]
[null,41,"Anand Nagar","Ordinary",70,"Chendani Koliwada","Khidkali","via Kalwa Bridge, Kharegaon Naka, Parsik Nagar, Reti Bunder, Mumbra Railway Station, Bharat Gears Co, Kalyan Phata"]
[null,42,"Anand Nagar","Ordinary",75,"Kalsekar college,Mumbra","Mira Road Railway Station","via Bharat Gears Co, Mumbra Railway Station, Reti Bunder, Parsik Nagar, Kharegaon Naka, Kalwa Bridge, RTO, Castle Mill, Majiwada Naka, Kapurbawdi, Manpada, Patlipada, Waghbil Naka, Kasarvadavli, Owala, Gaimukh, Kajupada, Fountain Hotel, Kashimira, Silver Park"]
[null,43,"Anand Nagar","Ordinary",82,"Lokmanya Nagar","Patlipada (Hiranandani Estate)","via Yashodhan Nagar, Kamgar Hospital, Passport Office, LBS Check Naka, Teen Hath Naka, Hariniwas, Thane Railway Station (W), Jambhli Naka, Castle Mill, Majiwada Naka, Kapurbawdi, Manpada, Patlipada"]
[null,44,"Wagle Depot","Ordinary",85,"Mulund Railway Station (W)","Narpoli","via Mulund Kamgar Hospital, LBS Check Naka, Teen Hath Naka, Nitin Co, Cadbury Jn, Majiwada Naka, Kapurbawdi, Balkum, Poorna"]
[null,45,"Wagle Depot","Ordinary",87,"Thane Railway Station (W)","Aalimghar","via Jambhli Naka, RTO, Kalwa Bridge, Kharegaon Naka, Parsik Nagar, Reti Bunder, Bhiwandi Bypass Toll Naka, Mankoli, Anjur Village"]
[null,46,"Anand Nagar","Ordinary",89,"Chendani Koliwada","Narpoli","via Kalwa Bridge, Saket Complex, Balkum Pada No.3, Balkum, Poorna"]
[null,47,"Anand Nagar","Ordinary",89,"Chendani Koliwada","Poorna","via Kalwa Bridge, Saket Complex, Balkum Pada No.3, Balkum"]
[null,48,"Anand Nagar","Ordinary",90,"Lokmanya Nagar","Kolshet","via Indira Nagar, Kamgar Hospital, Passport Office, LBS Check Naka, Teen Hath Naka, Malhar Cinema, Thane Railway Station (W), Jambhli Naka, Castle Mill, Majiwada Naka, Kapurbawdi, Balkum, Bayer Co, Air Force Station"]
[null,49,"Wagle Depot","Ordinary",91,"Kisan Nagar","Dadlani Park (Balkum)","via Passport Office, LBS Check Naka, Teen Hath Naka, Malhar Cinema, Thane Railway Station (W), Jambhli Naka, Castle Mill, Majiwada Naka, Kapurbawdi, Balkum"]
[null,50,"Anand Nagar","Ordinary",93,"Thane Railway Station (W)","Dadlani Park (Balkum)","via Jambhli Naka, Castle Mill, Majiwada Naka, Kapurbawdi, Balkum"]
[null,51,"Anand Nagar","Ordinary",95,"Thane Railway Station (W)","Kolshet","via Hariniwas, Ice Factory, Makhmali Talao, ST Workshop, Castle Mill, Majiwada Naka, Kapurbawdi, Dhokali, Bayer Co., Air Force Station, Kolshet."]
[null,52,"Anand Nagar","Ordinary",96,"Thane Railway Station (W)","Manorama Nagar","via Hariniwas, Makhmali Talao, ST Workshop, Castle Mill, Majiwada Naka, Kapurbawdi, Shruti Park, Dhokali"]
[null,53,"Anand Nagar","Ordinary",98,"Thane Railway Station (W)","Kolshet","via Jambhli Naka, Charai, Makhmali Talao, ST Workshop, Castle Mill, Majiwada Naka, Kapurbawdi, Dhokali, Air Force Station"]
[null,54,"Anand Nagar","Ordinary",100,"Kalwa Depot","Kisan Nagar","via Kalwa Bridge, RTO, Jambhli Naka, Thane Railway Station (W), Malhar Cinema, Teen Hath Naka, LBS Check Naka, Passport Office"]
[null,55,"Wagle Depot","Ordinary",102,"Mulund Railway Station (W)","Lokmanya Nagar","via Mulund Kamgar Hospital, LBS Check Naka, Passport Office, Kamgar Hospital, Yashodhan Nagar"]
[null,56,"Anand Nagar","Ordinary",103,"Mulund Railway Station (W)","Wagle Depot","via Mulund Kamgar Hospital, LBS Check Naka, Passport Office, J.B.Sawant Co, Sathe Nagar"]
[null,57,"Anand Nagar","Ordinary",104,"Mulund Railway Station (W)","Wagle Depot","via Mulund Kamgar Hospital, LBS Check Naka, Passport Office, Wagle Circle, Ram Nagar"]
[null,58,"Anand Nagar","Ordinary",109,"Kelkar College Mulund (E)","Shivai Nagar (Neelkanth Terminal)","via Gawanpada, Mulund Railway Station (E), E.E.Highway Check Naka, Teen Hath Naka, Nitin Co, Cadbury Jn, Vartak Nagar, Shivai Nagar, Devdaya Nagar"]
[null,59,"Anand Nagar","Ordinary",110,"Mulund Railway Station (W)","Pawar Nagar","via Mulund Kamgar Hospital, LBS Check Naka, Passport Office, Kamgar Hospital, Yashodhan Nagar, Kores Co, Vartak Nagar, Shivai Nagar, Upavan Lake, Kokanipada (Pokharan Road No.2), Neelkanth Terminal, Gandhi Nagar, Vasant Vihar"]
[null,60,"Anand Nagar","Ordinary",110,"Mulund Railway Station (W)","Kokanipada Chitalsar (Tikuji-ni-wadi)","via Mulund Kamgar Hospital, LBS Check Naka, Passport Office, Kamgar Hospital, Yashodhan Nagar, Kores Co, Vartak Nagar, Shivai Nagar, Upavan Lake, Kokanipada (Pokharan Road No.2), Neelkanth Terminal, Gandhi Nagar, Vasant Vihar, Khevra Circle"]
[null,61,"Wagle Depot","Ordinary",111,"Thane Railway Station (E)","Wagle Depot","via Kopri Bridge, Malhar Cinema, Teen Hath Naka, LBS Check Naka, Passport Office, Wagle Circle, Ram Nagar"]
[null,62,"Anand Nagar","Ordinary",112,"Thane Railway Station (W)","Lodha Paradise","via Jambhli Naka, Castle Mill, Golden Dyes Jn"]
[null,63,"Anand Nagar","Ordinary",115,"Mulund Railway Station (W)","Laxmi Park (More Wadi)","via Dumping Road, LBS Check Naka, Passport Office, Kamgar Hospital, Indira Nagar, Lokmanya Nagar, Yashodhan Nagar, Kores Co"]
[null,64,"Wagle Depot","Ordinary",120,"Kelkar College Mulund (E)","Vrindavan Society","via Gawanpada, Mulund Railway Station (W), Mulund Kamgar Hospital, LBS Check Naka, Teen Hath Naka, Hariniwas, Makhmali Talao, ST Workshop, Castle Mill"]
[null,65,"Anand Nagar","Ordinary",121,"Kelkar College Mulund (E)","Dharmachapada (Brahmand Society)","via Gawanpada, Mulund Railway Station (W), Mulund Kamgar Hospital, LBS Check Naka, Teen Hath Naka, Nitin Co, Cadbury Jn, Majiwada Naka, Kapurbawdi, Manpada, Azad Nagar"]